fUSD/lending_fUSD_20240912
["ID","MTS","AMOUNT","RATE_DAILY","PERIOD"]
[337851152,1726153855954,-500.0,0.00014794,2]
[337851153,1726153855964,-1321.95,0.00014794,2]
[337851154,1726153855974,-1470.71,0.00014794,2]
[337851155,1726153855992,-500.0,0.00014794,2]
[337851156,1726153856003,-1321.95,0.00014794,2]
[337851157,1726153856012,-2838.98,0.00014794,2]
[337851158,1726153856022,-1321.95,0.00014794,2]
[337851159,1726153856031,-2838.98,0.00014794,2]
[337851160,1726153856040,-500.0,0.00014794,2]
[337851161,1726153856050,-1470.71,0.00014794,2]
[337851162,1726153856060,-1321.95,0.00014794,2]
[337851163,1726153856070,-500.0,0.00014794,2]
[337851164,1726153856080,-2838.98,0.00014794,2]
[337851165,1726153856089,-726.15,0.00014794,2]
[337851166,1726153856099,-1470.71,0.00014794,2]
[337851167,1726153856108,-1321.95,0.00014794,2]
[337851168,1726153856118,-2838.98,0.00014794,2]
[337851169,1726153856127,-500.0,0.00014794,2]
[337851170,1726153856137,-726.15,0.00014794,2]
[337851171,1726153856258,-1321.95,0.00014794,2]
[337851172,1726153856268,-2838.98,0.00014794,2]
[337851173,1726153856277,-726.15,0.00014794,2]
[337851174,1726153856288,-1321.95,0.00014794,2]
[337851175,1726153856298,-1470.71,0.00014794,2]
[337851176,1726153856308,-2838.98,0.00014794,2]
[337851177,1726153856317,-726.15,0.00014794,2]
[337851178,1726153856327,-1321.95,0.00014794,2]
[337851179,1726153856337,-1470.71,0.00014794,2]
[337851180,1726153856347,-2838.98,0.00014794,2]
[337851181,1726153856357,-726.15,0.00014794,2]
[337851182,1726153856366,-1470.71,0.00014794,2]
[337851183,1726153856376,-2838.98,0.00014794,2]
[337851184,1726153856386,-726.15,0.00014794,2]
[337851185,1726153856396,-1470.71,0.00014794,2]
[337851186,1726153856405,-1321.95,0.00014794,2]
[337851187,1726153856415,-726.15,0.00014794,2]
[337851188,1726153856425,-1470.71,0.00014794,2]
[337851189,1726153856435,-726.15,0.00014794,2]
[337851190,1726153856444,-1321.95,0.00014794,2]
[337851191,1726153856454,-1470.71,0.00014794,2]
[337851192,1726153856464,-2838.98,0.00014794,2]
[337851193,1726153856474,-726.15,0.00014794,2]
[337851194,1726153856486,-1321.95,0.00014794,2]
[337851195,1726153856500,-1470.71,0.00014794,2]
[337851196,1726153856509,-726.15,0.00014794,2]
[337851197,1726153856518,-2838.98,0.00014794,2]
[337851198,1726153856528,-500.0,0.00014794,2]
[337851199,1726153856537,-1321.95,0.00014794,2]
[337851200,1726153856548,-1470.71,0.00014794,2]
[337851201,1726153856557,-726.15,0.00014794,2]
[337851202,1726153856566,-2838.98,0.00014794,2]
[337851203,1726153856576,-500.0,0.00014794,2]
[337851204,1726153856585,-1321.95,0.00014794,2]
[337851205,1726153856594,-1470.71,0.00014794,2]
[337851206,1726153856603,-2839.20604246,0.00014794,2]
[337851207,1726153856613,-726.15,0.00014794,2]
[337851208,1726153856624,-500.0,0.00014794,2]
[337851209,1726153856633,-1321.95,0.00014794,2]
[337851210,1726153856643,-1470.71,0.00014794,2]
[337851211,1726153856652,-726.15,0.00014794,2]
[337851212,1726153856661,-500.0,0.00014794,2]
[337851213,1726153856671,-1470.71,0.00014794,2]
[337851214,1726153856680,-1321.95,0.00014794,2]
[337851215,1726153856690,-500.0,0.00014794,2]
[337851216,1726153856699,-1470.82862134,0.00014794,2]
[337851217,1726153856709,-1321.95,0.00014794,2]
[337851218,1726153856719,-500.0,0.00014794,2]
[337851219,1726153856732,-726.15,0.00014794,2]
[337851220,1726153856742,-500.0,0.00014794,2]
[337851221,1726153856751,-726.15,0.00014794,2]
[337851222,1726153856761,-500.0,0.00014794,2]
[337851223,1726153856770,-726.15,0.00014794,2]
[337851224,1726153856780,-500.0,0.00014794,2]
[337851225,1726153856790,-726.15,0.00014794,2]
[337851226,1726153856800,-500.0,0.00014794,2]
[337851227,1726153856810,-726.15,0.00014794,2]
[337851228,1726153856821,-500.0,0.00014794,2]
[337851229,1726153856830,-726.15,0.00014794,2]
[337851231,1726153856840,-500.0,0.00014794,2]
[337851232,1726153856851,-726.15,0.00014794,2]
[337851233,1726153856860,-500.0,0.00014794,2]
[337851234,1726153856869,-726.15,0.00014794,2]
[337851235,1726153856879,-1321.95,0.00014794,2]
[337851236,1726153856888,-500.0,0.00014794,2]
[337851237,1726153856897,-1321.95,0.00014794,2]
[337851238,1726153856909,-726.15,0.00014794,2]
[337851239,1726153856921,-500.0,0.00014794,2]
[337851240,1726153856931,-1321.95,0.00014794,2]
[337851241,1726153856940,-500.0,0.00014794,2]
[337851242,1726153856951,-584.27,0.00014794,2]
[337851243,1726153856960,-1321.95,0.00014794,2]
[337851244,1726153856969,-500.0,0.00014794,2]
[337851245,1726153856980,-726.15,0.00014794,2]
[337851246,1726153856989,-500.0,0.00014794,2]
[337851247,1726153856999,-726.37926539,0.00014794,2]
[337851248,1726153857009,-584.27,0.00014794,2]
[337851249,1726153857018,-584.27,0.00014794,2]
[337851250,1726153857027,-500.0,0.00014794,2]
[337851251,1726153857037,-500.0,0.00014794,2]
[337851252,1726153857046,-584.27,0.00014794,2]
[337851253,1726153857055,-500.0,0.00014794,2]
[337851254,1726153857064,-500.0,0.00014794,2]
[337851255,1726153857074,-584.27,0.00014794,2]
[337851256,1726153857083,-584.27,0.00014794,2]
[337851257,1726153857092,-500.0,0.00014794,2]
[337851258,1726153857102,-584.27,0.00014794,2]
[337851259,1726153857111,-500.0,0.00014794,2]
[337851260,1726153857120,-584.27,0.00014794,2]
[337851261,1726153857129,-500.0,0.00014794,2]
[337851262,1726153857138,-584.27,0.00014794,2]
[337851263,1726153857147,-500.0,0.00014794,2]
[337851264,1726153857155,-584.27,0.00014794,2]
[337851265,1726153857165,-500.0,0.00014794,2]
[337851266,1726153857174,-584.27,0.00014794,2]
[337851267,1726153857183,-500.0,0.00014794,2]
[337851268,1726153857192,-584.27,0.00014794,2]
[337851269,1726153857201,-500.0,0.00014794,2]
[337851270,1726153857209,-584.27,0.00014794,2]
[337851271,1726153857219,-500.0,0.00014794,2]
[337851272,1726153857230,-584.27,0.00014794,2]
[337851273,1726153857239,-500.0,0.00014794,2]
[337851274,1726153857248,-596.66,0.00014794,2]
[337851275,1726153857258,-584.27,0.00014794,2]
[337851276,1726153857268,-500.0,0.00014794,2]
[337851277,1726153857277,-596.66,0.00014794,2]
[337851278,1726153857287,-584.27,0.00014794,2]
[337851279,1726153857296,-599.52683798,0.00014794,2]
[337851280,1726153857305,-596.66,0.00014794,2]
[337851281,1726153857314,-584.27,0.00014794,2]
[337851282,1726153857324,-596.66,0.00014794,2]
[337851283,1726153857334,-584.27,0.00014794,2]
[337851284,1726153857344,-596.66,0.00014794,2]
[337851285,1726153857353,-584.27,0.00014794,2]
[337851286,1726153857363,-584.27,0.00014794,2]
[337851287,1726153857372,-596.66,0.00014794,2]
[337851288,1726153857381,-584.27,0.00014794,2]
[337851289,1726153857391,-596.66,0.00014794,2]
[337851290,1726153857401,-596.66,0.00014794,2]
[337851291,1726153857412,-584.27,0.00014794,2]
[337851292,1726153857422,-596.66,0.00014794,2]
[337851293,1726153857432,-584.27,0.00014794,2]
[337851294,1726153857442,-596.66,0.00014794,2]
[337851295,1726153857451,-584.31283927,0.00014794,2]
[337851296,1726153857461,-596.66,0.00014794,2]
[337851297,1726153857471,-500.0,0.00014794,2]
[337851298,1726153857480,-596.66,0.00014794,2]
[337851299,1726153857489,-500.0,0.00014794,2]
[337851300,1726153857498,-596.66,0.00014794,2]
[337851301,1726153857507,-500.0,0.00014794,2]
[337851302,1726153857517,-596.66,0.00014794,2]
[337851303,1726153857528,-500.0,0.00014794,2]
[337851304,1726153857538,-1321.95,0.00014794,2]
[337851305,1726153857548,-500.0,0.00014794,2]
[337851306,1726153857557,-596.66,0.00014794,2]
[337851307,1726153857567,-500.0,0.00014794,2]
[337851308,1726153857576,-1322.01750128,0.00014794,2]
[337851309,1726153857585,-500.0,0.00014794,2]
[337851310,1726153857595,-500.0,0.00014794,2]
[337851311,1726153857604,-596.66,0.00014794,2]
[337851312,1726153857615,-500.0,0.00014794,2]
[337851313,1726153857625,-596.66,0.00014794,2]
[337851314,1726153857635,-500.0,0.00014794,2]
[337851315,1726153857646,-500.0,0.00014794,2]
[337851316,1726153857657,-596.66,0.00014794,2]
[337851317,1726153857668,-500.0,0.00014794,2]
[337851318,1726153857677,-500.0,0.00014794,2]
[337851319,1726153857687,-596.66,0.00014794,2]
[337851320,1726153857696,-500.0,0.00014794,2]
[337851321,1726153857705,-500.0,0.00014794,2]
[337851322,1726153857714,-596.66,0.00014794,2]
[337851323,1726153857723,-500.0,0.00014794,2]
[337851324,1726153857733,-500.0,0.00014794,2]
[337851325,1726153857742,-596.66,0.00014794,2]
[337851326,1726153857751,-500.0,0.00014794,2]
[337851327,1726153857760,-500.0,0.00014794,2]
[337851328,1726153857769,-596.66,0.00014794,2]
[337851329,1726153857778,-500.0,0.00014794,2]
[337851330,1726153857787,-500.0,0.00014794,2]
[337851331,1726153857796,-596.66,0.00014794,2]
[337851332,1726153857806,-500.0,0.00014794,2]
[337851333,1726153857815,-500.0,0.00014794,2]
[337851334,1726153857824,-500.0,0.00014794,2]
[337851335,1726153857833,-596.66855998,0.00014794,2]
[337851336,1726153857842,-500.0,0.00014794,2]
[337851337,1726153857851,-500.0,0.00014794,2]
[337851338,1726153857860,-500.0,0.00014794,2]
[337851339,1726153857869,-500.0,0.00014794,2]
[337851340,1726153857878,-500.0,0.00014794,2]
[337851341,1726153857887,-500.0,0.00014794,2]
[337851342,1726153857896,-500.0,0.00014794,2]
[337851343,1726153857907,-500.0,0.00014794,2]
[337851344,1726153857920,-500.0,0.00014794,2]
[337851345,1726153857929,-500.0,0.00014794,2]
[337851346,1726153857939,-500.0,0.00014794,2]
[337851347,1726153857950,-500.0,0.00014794,2]
[337851348,1726153857961,-500.0,0.00014794,2]
[337851349,1726153857971,-500.0,0.00014794,2]
[337851350,1726153857981,-500.0,0.00014794,2]
[337851351,1726153857992,-3113.57,0.00014794,2]
[337851352,1726153858001,-500.0,0.00014794,2]
[337851353,1726153858010,-500.0,0.00014794,2]
[337851354,1726153858019,-176.77827213,0.00014794,2]
[337851355,1726153858029,-3113.57,0.00014794,2]
[337851356,1726153858038,-500.0,0.00014794,2]
[337851357,1726153858047,-176.31989085,0.00014794,2]
[337851358,1726153858055,-3113.57,0.00014794,2]
[337851359,1726153858065,-500.0,0.00014794,2]
[337851360,1726153858074,-3113.57,0.00014794,2]
[337851361,1726153858083,-500.0,0.00014794,2]
[337851362,1726153858092,-3113.57,0.00014794,2]
[337851363,1726153858101,-500.0,0.00014794,2]
[337851364,1726153858110,-3113.57,0.00014794,2]
[337851365,1726153858118,-500.0,0.00014794,2]
[337851366,1726153858127,-3113.57,0.00014794,2]
[337851367,1726153858136,-500.0,0.00014794,2]
[337851368,1726153858145,-3113.57,0.00014794,2]
[337851369,1726153858154,-3113.57,0.00014794,2]
[337851370,1726153858163,-500.0,0.00014794,2]
[337851371,1726153858172,-3113.57,0.00014794,2]
[337851372,1726153858183,-500.0,0.00014794,2]
[337851373,1726153858193,-500.0,0.00014794,2]
[337851374,1726153858203,-3113.57,0.00014794,2]
[337851375,1726153858215,-3113.57,0.00014794,2]
[337851376,1726153858227,-477.6837402,0.00014794,2]
[337851377,1726153858237,-3113.57,0.00014794,2]
[337851378,1726153858246,-500.0,0.00014794,2]
[337851379,1726153858256,-3113.57,0.00014794,2]
[337851380,1726153858266,-3113.57,0.00014794,2]
[337851381,1726153858276,-500.0,0.00014794,2]
[337851382,1726153858287,-3113.57,0.00014794,2]
[337851383,1726153858298,-500.0,0.00014794,2]
[337851384,1726153858307,-3113.57,0.00014794,2]
[337851385,1726153858316,-1424.19,0.00014794,2]
[337851386,1726153858325,-500.0,0.00014794,2]
[337851387,1726153858334,-500.0,0.00014794,2]
[337851388,1726153858343,-1424.19,0.00014794,2]
[337851389,1726153858353,-462.88510697,0.00014794,2]
[337851390,1726153858625,-582.15028,0.00014794,2]
[337851391,1726153858639,-2068.53461303,0.00014794,2]
[337851392,1726153858650,-500.0,0.00014794,2]
[337851393,1726153858661,-402.10712573,0.00014794,2]
[337851394,1726153858669,-1424.19,0.00014794,2]
[337851395,1726153858678,-3113.57,0.00014794,2]
[337851396,1726153858687,-500.0,0.00014794,2]
[337851397,1726153858696,-1424.19,0.00014794,2]
[337851398,1726153858705,-3113.57,0.00014794,2]
[337851399,1726153858714,-500.0,0.00014794,2]
[337851400,1726153858723,-1424.19,0.00014794,2]
[337851401,1726153858734,-202.99096863,0.00014794,2]
[337851402,1726153858754,-2910.57903137,0.00014794,2]
[337851403,1726153858764,-500.0,0.00014794,2]
[337851404,1726153858774,-162.18849223,0.00014794,2]
[337851405,1726153858788,-1262.00150777,0.00014794,2]
[337851406,1726153858798,-500.0,0.00014794,2]
[337851407,1726153858807,-1424.19,0.00014794,2]
[337851408,1726153858817,-3113.57,0.00014794,2]
[337851409,1726153858827,-500.0,0.00014794,2]
[337851410,1726153858836,-1424.19,0.00014794,2]
[337851411,1726153858847,-3113.57,0.00014794,2]
[337851412,1726153858858,-500.0,0.00014794,2]
[337851413,1726153858867,-500.0,0.00014794,2]
[337851414,1726153858877,-1424.19,0.00014794,2]
[337851415,1726153858887,-3113.68080073,0.00014794,2]
[337851416,1726153858896,-500.0,0.00014794,2]
[337851417,1726153858907,-150.23696697,0.00014794,2]
[337851418,1726153858919,-500.0,0.00014794,2]
[337851419,1726153858928,-1424.19,0.00014794,2]
[337851420,1726153858937,-218.28906195,0.00014794,2]
[337851421,1726153858946,-584.14178686,0.00014794,2]
[337851422,1726153858955,-1424.19,0.00014794,2]
[337851423,1726153858965,-1424.19,0.00014794,2]
[337851424,1726153858975,-1424.19,0.00014794,2]
[337851425,1726153858985,-1424.19,0.00014794,2]
[337851426,1726153858995,-1424.19,0.00014794,2]
[337851427,1726153859004,-1424.19,0.00014794,2]
[337851428,1726153859014,-1424.19,0.00014794,2]
[337851429,1726153859023,-1424.19,0.00014794,2]
[337851430,1726153859033,-2999.78,0.00014794,2]
[337851431,1726153859042,-1424.19,0.00014794,2]
[337851432,1726153859052,-2999.78,0.00014794,2]
[337851433,1726153859061,-2999.78,0.00014794,2]
[337851434,1726153859070,-1424.19,0.00014794,2]
[337851435,1726153859080,-2999.78,0.00014794,2]
[337851436,1726153859090,-1424.19,0.00014794,2]
[337851437,1726153859100,-1101.33987602,0.00014794,2]
[337851438,1726153860047,-677.99999947,0.00014794,2]
[337851439,1726153860058,-451.34,0.00014794,2]
[337851440,1726153860070,-769.10012451,0.00014794,2]
[337851441,1726153860079,-1424.19,0.00014794,2]
[337851442,1726153860089,-2999.78,0.00014794,2]
[337851443,1726153860098,-1424.19,0.00014794,2]
[337851444,1726153860107,-2999.78,0.00014794,2]
[337851445,1726153860116,-1424.23402805,0.00014794,2]
[337851446,1726153860126,-2999.78,0.00014794,2]
[337851447,1726153860135,-2999.78,0.00014794,2]
[337851448,1726153860144,-2999.78,0.00014794,2]
[337851449,1726153860153,-2999.78,0.00014794,2]
[337851450,1726153860162,-310.57093942,0.00014794,2]
[337851451,1726153860171,-2999.78,0.00014794,2]
[337851452,1726153860180,-2999.78,0.00014794,2]
[337851453,1726153860189,-2999.78,0.00014794,2]
[337851454,1726153860198,-2999.78,0.00014794,2]
[337851455,1726153860208,-2999.78,0.00014794,2]
[337851456,1726153860217,-2999.78,0.00014794,2]
[337851457,1726153860226,-2999.78,0.00014794,2]
[337851458,1726153860238,-2999.78,0.00014794,2]
[337851459,1726153860247,-2999.78,0.00014794,2]
[337851460,1726153860256,-2999.78,0.00014794,2]
[337851461,1726153860265,-2999.78,0.00014794,2]
[337851462,1726153860274,-1542.95149461,0.00014794,2]
[337851463,1726153860307,-1033.05017563,0.00014794,2]
[337851464,1726153860322,-423.77832976,0.00014794,2]
[337851465,1726153860331,-1667.24827014,0.00014794,2]
[337851466,1726153860347,-379.71008372,0.00014794,2]
[337851467,1726153860359,-953.03886683,0.00014794,2]
[337851468,1726153860368,-151.85297239,0.00014794,2]
[337851469,1726153860380,-430.39702761,0.00014794,2]
[337851470,1726153860389,-582.25,0.00014794,2]
[337851471,1726153860398,-582.25,0.00014794,2]
[337851472,1726153860407,-582.25,0.00014794,2]
[337851473,1726153860415,-70.81037239,0.00014794,2]
[337851474,1726153860434,-369.15130269,0.00014794,2]
[337851475,1726153860449,-142.28832492,0.00014794,2]
[337851476,1726153860459,-2052.13,0.00014794,2]
[337851477,1726153860468,-169.88167508,0.00014794,2]
[337851478,1726153860482,-412.36832492,0.00014794,2]
[337851479,1726153860491,-330.9941751,0.00014794,2]
[337851480,1726153860503,-971.08824695,0.00014794,2]
[337851481,1726153860514,-384.50318454,0.00014794,2]
[337851482,1726153860525,-365.54439341,0.00014794,2]
[337851483,1726153860534,-1937.86,0.00014794,2]
[337851484,1726153860543,-582.25,0.00014794,2]
[337851485,1726153860552,-1937.86,0.00014794,2]
[337851486,1726153860562,-2052.13,0.00014794,2]
[337851487,1726153860571,-582.25,0.00014794,2]
[337851488,1726153860580,-2052.13,0.00014794,2]
[337851489,1726153860589,-1937.86,0.00014794,2]
[337851490,1726153860598,-582.25,0.00014794,2]
[337851491,1726153860738,-2052.13,0.00014794,2]
[337851492,1726153860748,-582.25,0.00014794,2]
[337851493,1726153860758,-1937.86,0.00014794,2]
[337851494,1726153860768,-2052.13,0.00014794,2]
[337851495,1726153860778,-582.25,0.00014794,2]
[337851496,1726153860787,-1937.86,0.00014794,2]
[337851497,1726153860796,-2052.13,0.00014794,2]
[337851498,1726153860805,-582.25,0.00014794,2]
[337851499,1726153860815,-1937.86,0.00014794,2]
[337851500,1726153860824,-2052.13,0.00014794,2]
[337851501,1726153860833,-1937.86,0.00014794,2]
[337851502,1726153860842,-582.25,0.00014794,2]
[337851503,1726153860852,-2052.13,0.00014794,2]
[337851504,1726153860862,-1937.86,0.00014794,2]
[337851505,1726153860872,-582.25,0.00014794,2]
[337851506,1726153860881,-2052.13,0.00014794,2]
[337851507,1726153860890,-582.25,0.00014794,2]
[337851508,1726153860900,-1937.86,0.00014794,2]
[337851509,1726153860913,-2052.13,0.00014794,2]
[337851510,1726153860923,-582.25,0.00014794,2]
[337851511,1726153860932,-1937.86,0.00014794,2]
[337851512,1726153860941,-2052.13,0.00014794,2]
[337851513,1726153860951,-1937.86,0.00014794,2]
[337851514,1726153860960,-582.25,0.00014794,2]
[337851515,1726153860970,-2052.13,0.00014794,2]
[337851516,1726153860979,-582.25,0.00014794,2]
[337851517,1726153860992,-2052.13,0.00014794,2]
[337851518,1726153861002,-1937.86,0.00014794,2]
[337851519,1726153861011,-2052.13,0.00014794,2]
[337851520,1726153861021,-1937.86,0.00014794,2]
[337851521,1726153861030,-582.25,0.00014794,2]
[337851522,1726153861039,-2052.13,0.00014794,2]
[337851523,1726153861048,-500.0,0.00014794,2]
[337851524,1726153861057,-1937.86,0.00014794,2]
[337851525,1726153861066,-582.25,0.00014794,2]
[337851526,1726153861075,-500.0,0.00014794,2]
[337851527,1726153861084,-1937.86,0.00014794,2]
[337851528,1726153861096,-2052.13,0.00014794,2]
[337851529,1726153861105,-582.25,0.00014794,2]
[337851530,1726153861115,-500.0,0.00014794,2]
[337851531,1726153861124,-500.0,0.00014794,2]
[337851532,1726153861133,-1679.81599629,0.00014794,2]
[337851533,1726153861191,-258.04400371,0.00014794,2]
[337851534,1726153861200,-582.25,0.00014794,2]
[337851535,1726153861209,-500.0,0.00014794,2]
[337851536,1726153861218,-1937.86,0.00014794,2]
[337851537,1726153861227,-2052.13,0.00014794,2]
[337851538,1726153861239,-500.0,0.00014794,2]
[337851539,1726153861249,-582.25,0.00014794,2]
[337851540,1726153861258,-500.0,0.00014794,2]
[337851541,1726153861267,-2052.13,0.00014794,2]
[337851542,1726153861276,-1937.86,0.00014794,2]
[337851543,1726153861285,-500.0,0.00014794,2]
[337851544,1726153861294,-582.39518172,0.00014794,2]
[337851545,1726153861304,-500.0,0.00014794,2]
[337851546,1726153861314,-1937.86,0.00014794,2]
[337851547,1726153861324,-500.0,0.00014794,2]
[337851548,1726153861335,-2052.13,0.00014794,2]
[337851549,1726153861345,-500.0,0.00014794,2]
[337851550,1726153861357,-1937.86,0.00014794,2]
[337851551,1726153861367,-2052.13,0.00014794,2]
[337851552,1726153861377,-2052.13,0.00014794,2]
[337851553,1726153861386,-298.139745,0.00014794,2]
[337851554,1726153861396,-500.0,0.00014794,2]
[337851555,1726153861406,-2052.13,0.00014794,2]
[337851556,1726153861416,-281.10674492,0.00014794,2]
[337851557,1726153861426,-1937.86,0.00014794,2]
[337851558,1726153861435,-2052.30843235,0.00014794,2]
[337851559,1726153861445,-1937.86,0.00014794,2]
[337851560,1726153861455,-1147.52856987,0.00014794,2]
[337851561,1726153862534,150.0,0.00013462,2]
[337851562,1726153863584,-0.75966,0.00013462,2]
[337851563,1726153885022,-349.24034,0.00013079,2]
[337851564,1726153885660,-56.62466,0.00013079,2]
[337851565,1726153898889,-292.97,0.00013949,2]
[337851567,1726153909144,-150.40534,0.00013924,2]
[337851568,1726153909339,-150.57586326,0.00013924,2]
[337851571,1726153971881,150.0,0.000103,5]
[337851572,1726153971901,150.0,0.000103,5]
[337851573,1726153971924,11208.0,0.000103,5]
[337851574,1726154006468,500.0,0.00011164,2]
[337851576,1726154138902,1050.0,0.00011,2]
[337851577,1726154283616,6062.0,0.000103,5]
[337851578,1726154336794,331.66,0.00011754,2]
[337851579,1726154416578,-158.45,0.00013668,2]
[337851580,1726154416599,-51.96433334,0.00013668,2]
[337851583,1726154708282,150.0,0.00013,2]
[337851584,1726154708313,226010.12621819,0.00013,2]
[337851585,1726154708343,247310.88479104,0.00013,2]
[337851591,1726154836250,306.2,0.00010959,2]
[337851626,1726155032382,-154.11,0.00013532,2]
[337851628,1726155032392,-182.90913656,0.00013552,2]
[337851629,1726155032440,-17.09086344,0.00013552,2]
[337851630,1726155032449,-250.0,0.00013571,2]
[337851631,1726155032459,-250.0,0.00013584,2]
[337851632,1726155032469,-171.02,0.00013597,2]
[337851633,1726155032478,-250.0,0.00013604,2]
[337851634,1726155032488,-800.0,0.00013635,2]
[337851635,1726155032497,-263.18,0.00013768,2]
[337851636,1726155032506,-154.11,0.00013881,2]
[337851637,1726155032516,-3651.37,0.00013891,2]
[337851638,1726155032525,-292.78884274,0.00013924,2]
[337851639,1726155032535,-499.99,0.00013924,2]
[337851640,1726155032545,-331.66,0.00014018,2]
[337851641,1726155032554,-593.770046,0.00014098,2]
[337851642,1726155032563,-154.11,0.00014262,2]
[337851643,1726155032573,-593.770046,0.00014272,2]
[337851644,1726155032582,-154.11,0.00014355,2]
[337851645,1726155032592,-154.11,0.00014355,2]
[337851646,1726155032601,-154.11,0.00014355,2]
[337851647,1726155032611,-12019.0,0.00014365,7]
[337851648,1726155032621,-593.770046,0.00014446,2]
[337851649,1726155032630,-200.0,0.000145,2]
[337851650,1726155032640,-2000.0,0.000145,2]
[337851651,1726155032649,-500.0,0.000145,2]
[337851652,1726155032658,-497.65108503,0.000145,2]
[337851653,1726155032668,-154.11,0.00014511,2]
[337851655,1726155032678,-500.0,0.00014521,2]
[337851657,1726155032687,-7617.50009236,0.00014557,2]
[337851659,1726155032696,-150.0,0.00014566,2]
[337851661,1726155032705,-17600.0,0.00014567,2]
[337851663,1726155032714,-360.58783052,0.00014584,2]
[337851664,1726155032723,-191.05118717,0.00014584,2]
[337851665,1726155032733,-593.770046,0.0001462,2]
[337851666,1726155032743,-655.0721,0.00014627,2]
[337851667,1726155032752,-191.05118717,0.00014639,2]
[337851668,1726155032761,-150.89,0.0001467,2]
[337851669,1726155032770,-201.10166491,0.0001467,2]
[337851670,1726155032779,-500.0,0.00014673,2]
[337851671,1726155032789,-500.0,0.00014675,2]
[337851672,1726155032798,-500.0,0.00014676,2]
[337851673,1726155032807,-291.84775025,0.00014679,2]
[337851674,1726155032816,-500.0,0.00014679,2]
[337851675,1726155032825,-646.65374584,0.00014679,2]
[337851676,1726155032835,-500.0,0.00014679,2]
[337851677,1726155032844,-500.0,0.00014679,2]
[337851678,1726155032853,-500.0,0.00014679,2]
[337851679,1726155032863,-376.85061111,0.00014679,2]
[337851680,1726155032872,-139787.30885679,0.0001468,2]
[337851681,1726155032884,-564.72,0.0001468,2]
[337851682,1726155032896,-3377.03584135,0.0001468,2]
[337851683,1726155032922,-2073.79125364,0.0001468,2]
[337851684,1726155032937,-3749.97599785,0.0001468,2]
[337851685,1726155032948,-653.26372546,0.0001468,2]
[337851686,1726155032960,-4207.88817068,0.0001468,2]
[337851687,1726155032972,-804.53368081,0.0001468,2]
[337851689,1726155032999,-4118.27119374,0.0001468,2]
[337851697,1726155038357,-1522.53252546,0.0001468,2]
[337851698,1726155038437,-317.14776361,0.0001468,2]
[337851699,1726155038450,-740.73551337,0.0001468,2]
[337851700,1726155038461,-597.24,0.0001468,2]
[337851701,1726155038569,-600.0,0.0001468,2]
[337851702,1726155038580,-22590.85096767,0.0001468,2]
[337851703,1726155038595,-386.588,0.0001468,2]
[337851704,1726155038606,-573.1923092,0.0001468,2]
[337851705,1726155038617,-471.39155754,0.0001468,2]
[337851707,1726155038627,-765.41975306,0.0001468,2]
[337851709,1726155038639,-410.70213987,0.0001468,2]
[337851711,1726155038651,-5740.77834692,0.0001468,2]
[337851713,1726155038663,-8323.234,0.0001468,2]
[337851717,1726155038691,-432.87680556,0.0001468,2]
[337851718,1726155038702,-2757.58727979,0.0001468,2]